Cogmind - Beta 10.2 @@@ ROGUE MODE // 2020.11.21 @ 13:14:29 Player: cptwinky Result: Destroyed by Lightning with EMDS Performance ------------- Evolutions (5) 2500 Regions Visited (23) 4600 Robots Destroyed (201) 1005 Value Destroyed (8456) 8456 Prototype IDs (34) 680 Alien Tech Used (0) 0 Bonus (7159) 7159 TOTAL SCORE: 24400 Bonus ------- High Alert Combat Kills 1151 Follower Combat Kills 3223 Entered Garrisons 600 Used RIF Installer 1500 Network Hubs Disabled 200 Met Data Miner 300 Built Enhanced Grunts 300 A7 Reached Mainframe 300 Met R17 at Cetus 500 Friendly Fire -915 Cogmind --------- Core Integrity 0/1000 Matter 156/300 Energy 28/100 System Corruption 71% Temperature Cool (0) Movement Treading (180) Ox1 Location -5/Hub_04(d) Parts ------- > --- POWER (2) -------- (None) > --- PROPULSION (3) --- Centrium Heavy Treads > --- UTILITY (10) ----- High-capacity Storage Unit High-capacity Storage Unit High-capacity Storage Unit High-capacity Storage Unit Advanced Terrain Scan Processor Makeshift System Shield Relay Coupler [Grunt] (33) > --- WEAPON (2) ------- (None) > --- INVENTORY (36) --- Improved Energy Well (600) High-capacity Matter Pod (200) Long-range Terrain Scanner Experimental Thermal Shield Improved Shield Generator Advanced Shield Generator Hacking Suite Relay Coupler [Swarmer] (48) Relay Coupler [Swarmer] (48) Relay Coupler [Grunt] (35) Proton Cannon Proton Cannon Improved Proton Missile Launcher Powered Hammer Dirty Bomb Trap Dirty Bomb Trap Peak State ------------ > --- POWER ------------ Antimatter Reactor Quantum Reactor > --- PROPULSION ------- Medium Treads Centrium Heavy Treads > --- UTILITY ---------- Advanced Heat Sink High-capacity Storage Unit High-capacity Storage Unit High-capacity Storage Unit High-capacity Storage Unit Advanced Terrain Scan Processor Centrium Medium Armor Plating Centrium Medium Armor Plating Centrium Medium Armor Plating Makeshift System Shield > --- WEAPON ----------- Proton Cannon Proton Cannon > --- INVENTORY -------- Quantum Reactor Quantum Reactor Improved Treads Centrium Heavy Treads Centrium Heavy Treads Centrium Heavy Treads Improved Energy Well High-capacity Matter Pod Long-range Terrain Scanner Improved Utility Shielding Centrium Medium Armor Plating Experimental Thermal Shield Improved Shield Generator Hacking Suite Relay Coupler [NC] Relay Coupler [NC] Relay Coupler [Swarmer] Relay Coupler [Swarmer] Relay Coupler [Grunt] Relay Coupler [Grunt] Relay Coupler [Grunt] 01-MTF's Shockpuncher KE Penetrator Improved KE Penetrator Improved KE Penetrator Improved KE Penetrator Improved Proton Missile Launcher Long-range Missile Launcher Long-range Missile Launcher Improved Remote Datajack Powered Hammer Dirty Bomb Trap Dirty Bomb Trap [Rating: 112] Favorites ----------- Power Improved Deuterium Engine Engine Improved Deuterium Engine Power Core Light Nuclear Core Reactor Antimatter Reactor Propulsion Light Treads Treads Light Treads Wheel Armored Huge Wheel Utility High-capacity Storage Unit Device Advanced Heat Sink Storage High-capacity Storage Unit Processor Improved Signal Interpreter Hackware Relay Coupler [Swarmer] Protection Improved Light Armor Plating Weapon Cooled Particle Cannon Energy Gun Beam Rifle Energy Cannon Cooled Particle Cannon Ballistic Gun Heavy Assault Rifle Ballistic Cannon Gauss Cannon Launcher Mini Grenade Launcher Special Weapon Remote Datajack Impact Weapon Mace Special Melee Weapon Datajack Build | -11 -10 -10 -9 -9 -9 -9 -7 -7 -7 -7 -7 -6 -6 -6 -6 -6 -6 -5 -5 -5 -5 -5 -5 ------- Run | Scr Mat Min Mat Sto Gar Rec Fac Gar Fac Low Low Fac Gar Fac Low Low Dat Pro Fac Ext Cet Arc Hub Slots Evolved 10 | . . . 2 . . . 4 . . . . 2 . . . . . . 2 . . . . Power 1 | . . . . . . . . . . . . . . . . . . . 1 . . . . Propulsion 1 | . . . . . . . 1 . . . . . . . . . . . . . . . . Utility 8 | . . . 2 . . . 3 . . . . 2 . . . . . . 1 . . . . Weapon . | . . . . . . . . . . . . . . . . . . . . . . . . Parts Attached 307 | 6 12 11 18 14 17 1 10 19 43 9 6 1 8 12 20 11 . 2 6 25 13 1 42 Power 19 | 1 1 1 1 1 . . . . 5 . . . 1 . 2 . . . 1 2 1 . 2 Engine 13 | 1 1 . 1 1 . . . . 4 . . . 1 . 2 . . . 1 1 . . . Core 2 | . . 1 . . . . . . 1 . . . . . . . . . . . . . . Reactor 4 | . . . . . . . . . . . . . . . . . . . . 1 1 . 2 Propulsion 52 | 2 2 3 5 3 5 . 2 2 8 3 1 . . . . 1 . . . 7 3 . 5 Treads 46 | 2 2 3 5 3 5 . 1 2 7 1 . . . . . . . . . 7 3 . 5 Leg . | . . . . . . . . . . . . . . . . . . . . . . . . Wheel 6 | . . . . . . . 1 . 1 2 1 . . . . 1 . . . . . . . Hover . | . . . . . . . . . . . . . . . . . . . . . . . . Flight . | . . . . . . . . . . . . . . . . . . . . . . . . Utility 97 | 1 6 3 9 2 2 . 6 5 9 2 1 1 4 4 7 3 . 2 5 8 4 1 12 Device 19 | . 2 2 . . . . . . 1 . . . 1 2 3 1 . 1 2 2 . 1 1 Storage 15 | 1 4 . 4 . 1 . 2 . . 2 . . . . . . . . . . 1 . . Processor 4 | . . . 2 . . . 1 . . . . . . 1 . . . . . . . . . Hackware 16 | . . . . . . . 1 2 2 . . . 2 1 2 . . . 2 . . . 4 Protection 43 | . . 1 3 2 1 . 2 3 6 . 1 1 1 . 2 2 . 1 1 6 3 . 7 Artifact . | . . . . . . . . . . . . . . . . . . . . . . . . Weapon 139 | 2 3 4 3 8 10 1 2 12 21 4 4 . 3 8 11 7 . . . 8 5 . 23 Energy Gun 11 | . . 2 1 2 3 . . . . . . . . . 1 1 . . . . . . 1 Energy Cannon 27 | . . . . . . . . . 3 1 2 . 1 5 4 4 . . . . 2 . 5 Ballistic Gun 46 | 2 3 . 2 4 5 . 2 7 11 . . . . . . . . . . 2 1 . 7 Ballistic Cannon 8 | . . 1 . . . . . . . . . . . . 2 . . . . 4 1 . . Launcher 17 | . . . . . 2 1 . 4 2 1 . . . . 1 1 . . . 1 1 . 3 Special Weapon 19 | . . 1 . . . . . . 1 2 2 . 2 1 3 1 . . . 1 . . 5 Impact Weapon 7 | . . . . 1 . . . . 2 . . . . 2 . . . . . . . . 2 Slashing Weapon . | . . . . . . . . . . . . . . . . . . . . . . . . Piercing Weapon . | . . . . . . . . . . . . . . . . . . . . . . . . Special Melee Weapon 4 | . . . . 1 . . . 1 2 . . . . . . . . . . . . . . Unidentified Prototypes 7 | . . . . 1 . . . . 2 . . . . . . . . . 1 . 3 . . Parts Lost 74 | . 1 10 . 1 . . . 4 13 2 . . . 2 1 3 . . . 12 . . 25 Power 9 | . 1 1 . . . . . . 1 . . . . . . . . . . 2 . . 4 Propulsion 19 | . . 4 . . . . . 1 3 1 . . . . . 1 . . . 4 . . 5 Utility 21 | . . . . 1 . . . 2 5 1 . . . 1 . 1 . . . 2 . . 8 Weapon 25 | . . 5 . . . . . 1 4 . . . . 1 1 1 . . . 4 . . 8 Highest Loss Streak 18 | . 1 10 . 1 . . . 2 5 1 . . . 1 1 3 . . . 6 . . 18 Average Slot Usage (%) 95 | . 99 67 97 99 100 100 98 99 96 94 92 86 86 89 92 92 93 93 93 98 95 94 90 Engine 6 | . 14 1 . 11 11 11 7 7 7 7 7 6 6 6 6 6 6 6 11 8 3 . . Reactor 1 | . . . . . . . . . . . . . . . . . . . . 2 6 11 10 Treads 12 | . 27 18 21 22 22 22 20 23 16 18 . . . . . . . . . 14 12 11 10 Wheel 4 | . . . . . . . 2 . 2 1 14 13 13 13 13 13 13 13 11 1 . . . Device 2 | . 8 9 7 . . . . . 3 . . . . 2 2 4 . . 4 2 5 5 4 Storage 24 | . 19 12 16 33 33 33 23 23 23 24 30 26 26 26 26 26 26 26 23 23 23 23 23 Processor 6 | . . . 6 . . . 7 7 7 7 7 6 6 6 13 13 13 13 5 5 5 5 5 Hackware 6 | . . . . . . . 6 12 10 7 7 6 5 6 9 6 6 6 15 11 5 5 7 Protection 9 | . . 2 13 10 11 11 15 9 6 9 7 13 13 13 7 7 13 12 6 13 17 17 14 Energy Cannon 5 | . . . . . . . . . 2 12 14 13 10 10 6 5 6 6 5 . 4 11 6 Ballistic Gun 6 | . 27 2 8 20 18 11 13 14 11 . . . . . . . . . . 1 . . 1 Ballistic Cannon 1 | . . 7 6 . . . . . . . . . . . 3 6 6 6 5 7 3 . . Naked Turns . | . . . . . . . . . . . . . . . . . . . . . . . . Heaviest Build 202 | 11 41 41 68 71 87 83 124 124 130 155 157 172 172 162 161 161 158 158 170 188 202 202 202 Greatest Support 108 | 40 40 40 40 40 43 43 71 71 68 71 40 40 40 40 40 40 40 40 40 88 103 103 108 Greatest Overweight (x) 13 | . 1 1 1 1 2 1 10 1 4 5 5 4 4 4 4 4 3 3 4 13 2 1 1 Average Overweight (x) 2 | . . . . 1 1 1 4 1 2 2 3 4 3 3 3 3 3 3 4 2 1 1 1 Largest Inventory Capacity 36 | 6 16 16 22 22 24 24 28 28 28 36 36 36 36 36 36 36 36 36 36 36 36 36 36 Average Capacity 29 | 5 9 9 13 22 22 24 27 28 28 30 36 36 36 36 36 36 36 36 36 36 36 36 36 Most Carried 36 | 4 13 11 20 22 24 24 24 28 28 36 36 34 36 36 36 36 34 36 35 36 36 36 36 Average Carried 28 | 2 8 5 10 21 22 23 23 24 26 29 35 34 34 35 32 34 34 35 34 35 35 36 34 Final Capacity 36 | 6 16 4 22 22 24 24 28 28 28 36 36 36 36 36 36 36 36 36 36 36 36 36 36 Final Carried 36 | 4 11 4 20 22 23 24 24 28 28 36 36 34 36 36 32 34 34 36 35 36 36 36 16 Class Distribution -------------------- 75% | Bothacker-Mutant 13% | Hauler-Mutant 7% | Mutant Dominant Class ---------------- Mutant | -10/Materials Mutant | -10/Mines Scavenger-Mutant | -9/Materials Hauler-Mutant | -9/Storage Hauler-Mutant | -9/Garrison Bothacker-Mutant | -9/Recycling Bothacker-Mutant | -7/Factory Bothacker-Mutant | -7/Garrison Bothacker-Mutant | -7/Factory Bothacker-Mutant | -7/Lower Caves Bothacker-Mutant | -7/Lower Caves Bothacker-Mutant | -6/Factory Bothacker-Mutant | -6/Garrison Bothacker-Mutant | -6/Factory Bothacker-Mutant | -6/Lower Caves Bothacker-Mutant | -6/Lower Caves Bothacker-Mutant | -6/Data Miner Bothacker-Mutant | -5/Proximity Caves Bothacker-Mutant | -5/Factory Bothacker-Mutant | -5/Extension Bothacker-Mutant | -5/Cetus Bothacker-Mutant | -5/Archives Bothacker-Mutant | -5/Hub_04(d) Resources | -11 -10 -10 -9 -9 -9 -9 -7 -7 -7 -7 -7 -6 -6 -6 -6 -6 -6 -5 -5 -5 -5 -5 -5 ----------- Run | Scr Mat Min Mat Sto Gar Rec Fac Gar Fac Low Low Fac Gar Fac Low Low Dat Pro Fac Ext Cet Arc Hub Matter Collected 5849 | 240 376 103 346 254 222 . 200 678 853 129 116 . 55 160 402 159 . 30 . 824 218 10 474 Remotely . | . . . . . . . . . . . . . . . . . . . . . . . . Salvage Created 8061 | . 623 98 539 722 614 68 . 503 1066 160 157 30 202 93 405 150 . 104 63 857 392 412 803 Parts 417 | . 41 4 41 45 33 12 . 35 57 10 7 2 7 2 9 7 . 3 2 36 19 10 35 Haulers Intercepted 7 | . 2 . 1 2 . . . . 2 . . . . . . . . . . . . . . Recyclers Shooed 2 | . . . 1 . . . . . 1 . . . . . . . . . . . . . . Parts Field Recycled . | . . . . . . . . . . . . . . . . . . . . . . . . Retrieved Matter . | . . . . . . . . . . . . . . . . . . . . . . . . Parts Self-Destructed 34 | . . . . . . . . . . 6 6 . . . 6 4 . 12 . . . . . Prevented 5 | . . . . . . . . . . 2 . . . . 3 . . . . . . . . Kills | -11 -10 -10 -9 -9 -9 -9 -7 -7 -7 -7 -7 -6 -6 -6 -6 -6 -6 -5 -5 -5 -5 -5 -5 ------- Run | Scr Mat Min Mat Sto Gar Rec Fac Gar Fac Low Low Fac Gar Fac Low Low Dat Pro Fac Ext Cet Arc Hub Combat Hostiles Destroyed 157 | . 10 4 11 9 15 7 . 18 22 6 3 1 4 1 8 3 . 2 1 13 5 1 13 Melee 2 | . . . . . . 1 . . . . . . . . . . . . . . . . 1 Guns 49 | . 10 2 3 9 4 . . 7 11 . . . . . . 1 . . . . . . 2 Cannons 55 | . . 2 8 . . . . . 5 2 3 1 4 . 7 1 . 2 1 13 1 . 5 AOE 40 | . . . . . 10 6 . 11 6 4 . . . . . 1 . . . . . . 2 Classes Destroyed 20 | . 4 2 3 . 1 1 . . 2 3 . . . . 1 . . . . 1 . . 2 Worker 6 | . . . . . . . . . 2 . . . . . . . . . . . . . 4 Builder 1 | . . . . . . . . . . . . . . . . . . . . . . . 1 Tunneler 2 | . . . . . . . . . . . . . . . . . . . . . . . 2 Hauler 7 | . 2 . 1 2 . . . . 2 . . . . . . . . . . . . . . Recycler 6 | . . . 1 1 . 1 . . 1 . . . . . . . . . . 2 . . . Minesweeper 2 | . . . . . . . . . . 1 1 . . . . . . . . . . . . Operator 12 | . 1 . . . . . . . . . . . . . . . . . . 1 . 9 1 Drone 7 | . . . . . . 7 . . . . . . . . . . . . . . . . . Watcher 8 | . 2 . 4 . . . . . . . . . . 1 . . . . . 1 . . . Swarmer 33 | . . 1 3 . 6 . . 8 5 4 . 1 1 . 2 . . . . . . . 2 Grunt 59 | . 10 2 4 5 5 . . 8 9 . 3 . 1 . 1 1 . 2 . 2 . . 6 Brawler 5 | . . . . . 3 . . . . . . . 1 . 1 . . . . . . . . Duelist 5 | . . . 1 . 1 . . 1 1 . . . . . . . . . . 1 . . . Sentry 25 | . . . 3 4 . . . 1 4 . . . 1 1 . . . . 1 7 . 1 2 Hunter 2 | . . . . . . . . . . . . . . . . . . . . 2 . . . Programmer 5 | . . . . . . . . . 3 . . . . . . . . . . . . . 2 Behemoth 3 | . . . . . . . . . . 1 . . . . 1 . . . . 1 . . . Cetus Guard 5 | . . . . . . . . . . . . . . . . . . . . . 5 . . Lightning 1 | . . . . . . . . . . . . . . . . . . . . . . . 1 Packrat 1 | . . . . . . . . . . . . . . . 1 . . . . . . . . Thief 1 | . . . . . . . . . . . . . . . 1 . . . . . . . . Assembled 1 | . . 1 . . . . . . . . . . . . . . . . . . . . . Thug 3 | . . . . . . . . . . . . . . . 1 2 . . . . . . . Butcher 1 | . . . . . . . . . . . . . . . 1 . . . . . . . . Mutant 1 | . . . . . . . . . . 1 . . . . . . . . . . . . . Best Kill Streak 7 | . 3 2 3 3 6 2 . 4 7 4 3 1 2 1 2 1 . 2 1 5 4 4 6 Combat Bots Only 6 | . 3 2 3 3 6 2 . 4 6 4 3 1 2 1 2 1 . 2 1 4 4 1 2 Max Kills in Single Turn 6 | . 1 1 1 2 2 2 . 3 3 2 1 1 1 1 1 1 . 1 1 1 1 2 6 Gunslinging 1 | . . . . 1 . . . . . . . . . . . . . . . . . . . Exploded 3 | . . . . . 2 1 . 3 2 2 . . . . . 1 . . . . . . 2 Melee 1 | . . . . . . 1 . . . . . . . . . . . . . . . . 1 Uniques/NPCs Destroyed 1 | . . . . 1 . . . . . . . . . . . . . . . . . . . 01-MTF (-9/Storage) Combat | -11 -10 -10 -9 -9 -9 -9 -7 -7 -7 -7 -7 -6 -6 -6 -6 -6 -6 -5 -5 -5 -5 -5 -5 -------- Run | Scr Mat Min Mat Sto Gar Rec Fac Gar Fac Low Low Fac Gar Fac Low Low Dat Pro Fac Ext Cet Arc Hub Damage Taken 19276 | . 493 1139 264 328 218 107 . 983 2418 694 169 . 300 190 388 221 . 32 95 2723 206 75 8233 Core 1796 | . 47 198 39 30 37 16 . 63 149 77 60 . 10 . 18 20 . . 47 148 20 . 817 Absorbed by Shields 887 | . . . . . . . . . . . . . 186 . . . . . . 533 168 . . Reduced by Siege Mode 199 | . . . . . . . . . . . . . . . . . . . . . . . 199 Core Remaining (%) 63 | 100 . 2 . . . 69 . . . . 50 . . . . . . 94 . . . . . Volleys Fired 600 | . 41 16 50 32 28 13 4 28 60 28 34 1 24 8 44 17 . 12 5 55 10 23 67 Largest 2 | . 2 2 2 2 2 1 2 2 2 2 2 2 2 2 2 2 . 2 2 2 2 2 2 Hottest 180 | . 40 80 91 50 50 30 46 46 60 180 100 60 60 60 78 91 . 78 78 114 150 150 150 Shots Fired 947 | . 82 21 65 51 31 13 8 44 113 41 43 2 40 12 64 21 . 17 8 109 14 46 102 Gun 399 | . 82 11 42 51 22 . 8 35 90 . . . . . 5 7 . . . 17 . . 29 Cannon 436 | . . 10 23 . . . . . 19 30 29 2 33 10 49 11 . 17 8 91 8 46 50 Launcher 52 | . . . . . 9 13 . 9 4 4 . . . . . 1 . . . . 6 . 6 Special 60 | . . . . . . . . . . 7 14 . 7 2 10 2 . . . 1 . . 17 Kinetic 473 | . 82 12 43 40 6 . 8 35 90 . . . . . 22 4 . 5 3 93 4 . 26 Thermal 230 | . . 4 22 . . . . . 19 37 37 2 33 10 27 7 . 12 5 15 . . . Explosive 46 | . . . . . 9 13 . 9 4 4 . . . . . 1 . . . . . . 6 Electromagnetic 153 | . . 5 . 11 16 . . . . . . . . . 5 7 . . . . 10 46 53 Robot Hit Streak 41 | . 18 23 24 41 14 . . 13 27 23 10 11 13 7 8 10 . 11 10 22 4 5 15 Robot Miss Streak 9 | . 3 2 3 1 2 5 . 2 9 1 1 . 3 1 4 1 . 1 . 2 3 2 2 Penetration Max 1 | . . . . . . . . . . . . . . . . 1 . . . 1 . . 1 Secondary Targets 9 | . 3 1 . 1 . . . 2 1 . . . . . . . . . . . . . 1 Max Gunslinging Chain 1 | . 1 1 . 1 . . . 1 1 . . . . . . . . . . . . . 1 Shots Hit Robots 681 | . 68 17 48 41 21 . . 31 105 33 25 1 25 8 34 17 . 7 5 83 5 31 76 Core Hits 429 | . 31 7 23 16 19 9 . 42 87 15 9 1 9 1 14 16 . 3 3 41 12 16 55 Critical Hits 18 | . 1 . 2 . . . . . . . . . . . 3 . . . . 4 1 2 5 Critical Kills 5 | . . . . . . . . . . . . . . . 1 . . . . 2 1 . 1 Critical Parts Destroyed 11 | . 1 . 2 . . . . . . . . . . . 1 . . . . 2 . 1 4 Melee Attacks 23 | . . . . 2 . . . 5 6 . . . . 3 . . . . . . . . 7 Impact 14 | . . . . 1 . . . . 3 . . . . 3 . . . . . . . . 7 Slashing . | . . . . . . . . . . . . . . . . . . . . . . . . Piercing . | . . . . . . . . . . . . . . . . . . . . . . . . Sneak Attacks 1 | . . . . 1 . . . . . . . . . . . . . . . . . . . Combat Hostiles . | . . . . . . . . . . . . . . . . . . . . . . . . Follow-up Attacks . | . . . . . . . . . . . . . . . . . . . . . . . . Damage Inflicted 21411 | . 897 234 762 735 1230 343 . 1720 3125 1293 440 27 541 187 757 559 . 134 142 2595 562 1181 3947 Guns 5719 | . 882 127 442 735 540 . . 360 1527 . . . . . 71 82 . . . 155 . . 798 Cannons 8614 | . . 107 299 . . . . . 411 832 351 27 541 187 686 216 . 134 142 2404 153 1032 1092 Explosions 6801 | . . . . . 690 329 . 1360 1182 386 . . . . . 261 . . . . 402 149 2042 Melee . | . . . . . . . . . . . . . . . . . . . . . . . . Ramming 113 | . 15 . 21 . . 14 . . 5 . . . . . . . . . . 36 7 . 15 Kinetic 7625 | . 882 132 566 462 33 . . 360 1527 . . . . . 362 134 . 80 88 2209 49 . 741 Thermal 3858 | . . 44 175 . . . . . 411 907 440 27 541 187 324 82 . 54 54 350 . 149 113 Explosive 6137 | . . . . . 690 329 . 1360 1182 386 . . . . . 261 . . . . . . 1929 Electromagnetic 3678 | . . 58 . 273 507 . . . . . . . . . 71 82 . . . . 506 1032 1149 Impact . | . . . . . . . . . . . . . . . . . . . . . . . . Slashing . | . . . . . . . . . . . . . . . . . . . . . . . . Piercing . | . . . . . . . . . . . . . . . . . . . . . . . . Highest Corruption 71 | . . . . . . . . . . . . . . . . . . . . . . . 71 Average Corruption 12 | . . . . . . . . . . . . . . . . . . . . . . . 12 Corruption Purged . | . . . . . . . . . . . . . . . . . . . . . . . . Effects 19 | . . . . . . . . . . . . . . . . . . . . . . . 19 Message Errors 1 | . . . . . . . . . . . . . . . . . . . . . . . 1 Matter Fused 1 | . . . . . . . . . . . . . . . . . . . . . . . 1 Heat Flow Errors 3 | . . . . . . . . . . . . . . . . . . . . . . . 3 Energy Discharges 1 | . . . . . . . . . . . . . . . . . . . . . . . 1 Data Loss (minor) 1 | . . . . . . . . . . . . . . . . . . . . . . . 1 Misdirections 1 | . . . . . . . . . . . . . . . . . . . . . . . 1 Targeting Errors 11 | . . . . . . . . . . . . . . . . . . . . . . . 11 Overload Shots 4 | . . . . . . . . . . 4 . . . . . . . . . . . . . Overflow Damage 658 | . . . . . 91 . . 1 157 40 12 . 31 20 58 . . . . 33 . 138 77 Projectiles 360 | . . . . . . . . . . 40 12 . 31 20 58 . . . . 33 . 109 57 Explosions 298 | . . . . . 91 . . 1 157 . . . . . . . . . . . . 29 20 Melee . | . . . . . . . . . . . . . . . . . . . . . . . . Knockbacks 18 | . . 1 . . . . . . . . . . . . 3 2 . . . 12 . . . Impact 1 | . . . . . . . . . . . . . . . . . . . . 1 . . . Kinetic 14 | . . 1 . . . . . . . . . . . . 3 1 . . . 9 . . . Secondary 3 | . . . . . . . . . . . . . . . . 1 . . . 2 . . . Self-Inflicted Damage 318 | . . . . . 52 109 . 14 98 . . . . . . . . . . . . . 45 Shots 12 | . . . . . 3 5 . 1 2 . . . . . . . . . . . . . 1 Rammed 11 | . 3 1 2 . . . . . 1 . . . . . . . . . . 3 1 . . Targets Rammed 15 | . 3 1 2 . . 1 . . 2 . . . . . . . . . . 4 1 . 1 Kicked . | . . . . . . . . . . . . . . . . . . . . . . . . Crushed 4 | . . . . . . 1 . . 1 . . . . . . . . . . 1 . . 1 Highest Temperature 336 | . 14 23 7 60 72 . . 11 10 249 132 3 39 26 56 80 . 6 36 325 96 336 315 Average Temperature 58 | . 3 5 3 17 23 . . 4 2 90 39 2 10 11 14 31 . 6 19 84 34 94 75 Received Heat Transfer 2812 | . 279 201 42 84 12 . . 345 612 120 101 . 78 36 60 63 . 6 . 367 4 9 393 Effects 3 | . . . . . . . . . . 2 . . . . . . . . . . . . 1 Energy Bleed 1 | . . . . . . . . . . . . . . . . . . . . . . . 1 Interference 2 | . . . . . . . . . . 2 . . . . . . . . . . . . . Siege Activations 1 | . . . . . . . . . . . . . . . . . . . . . . . 1 Total Turns 15 | . . . . . . . . . . . . . . . . . . . . . . . 15 Longest Duration 15 | . . . . . . . . . . . . . . . . . . . . . . . 15 Robots Corrupted 16 | . . . . 1 3 . . . . . . . . . . . . . . . 4 5 3 Combat Hostiles 9 | . . . . . 1 . . . . . . . . . . . . . . . 4 1 3 Parts Fried 33 | . . . . 1 3 . . . . . . . . . 1 . . . . . 6 17 5 Impact Corruptions . | . . . . . . . . . . . . . . . . . . . . . . . . Robots Melted 2 | . . . . . . . . . . . . . . 1 1 . . . . . . . . Combat Hostiles 2 | . . . . . . . . . . . . . . 1 1 . . . . . . . . Parts Melted 12 | . . . . . . . . . 1 1 2 . . 2 6 . . . . . . . . Heat Transferred 6131 | . . 100 444 . . . . . 555 1537 1121 37 644 259 444 111 . 74 74 481 . 150 100 Parts Sabotaged . | . . . . . . . . . . . . . . . . . . . . . . . . Parts Stolen 1 | . . . . . . . . . . . . . . . 1 . . . . . . . . Parts Stripped . | . . . . . . . . . . . . . . . . . . . . . . . . Power Chain Reactions 2 | . . . . . . . . . . . . . . . . . . . . . . 1 1 Missiles Intercepted . | . . . . . . . . . . . . . . . . . . . . . . . . Alert | -11 -10 -10 -9 -9 -9 -9 -7 -7 -7 -7 -7 -6 -6 -6 -6 -6 -6 -5 -5 -5 -5 -5 -5 ------- Run | Scr Mat Min Mat Sto Gar Rec Fac Gar Fac Low Low Fac Gar Fac Low Low Dat Pro Fac Ext Cet Arc Hub Peak Influence 1330 | . 179 50 238 375 905 589 1052 1330 804 . . 162 279 193 . . . . 59 263 653 495 896 Initial 989 | . . 16 19 54 185 406 989 736 697 . . . 113 146 . . . . . 28 147 181 11 Average 388 | . 37 23 79 175 660 435 1008 1103 655 . . 43 205 119 . . . . 15 83 426 281 622 Maximum Alert Level 4 | . . . 1 1 3 2 3 4 3 . . . 1 . . . . . . 1 2 2 3 Low Security (%) 42 | 100 100 100 89 46 3 . . . . . . 100 39 100 . . . . 100 86 18 37 6 Level 1 15 | . . . 10 53 2 35 . . . . . . 60 . . . . . . 13 37 38 6 Level 2 19 | . . . . . 44 64 . . 69 . . . . . . . . . . . 43 24 23 Level 3 18 | . . . . . 49 . 100 50 30 . . . . . . . . . . . . . 62 Level 4 4 | . . . . . . . . 49 . . . . . . . . . . . . . . . Level 5 . | . . . . . . . . . . . . . . . . . . . . . . . . High Security . | . . . . . . . . . . . . . . . . . . . . . . . . Max Security . | . . . . . . . . . . . . . . . . . . . . . . . . Squads Dispatched 46 | . 2 . 1 4 . . 2 . 14 . . 1 . 1 . . . . 2 3 . . 16 Investigation 11 | . 1 . . 1 . . 1 . 2 . . 1 . 1 . . . . 1 . . . 3 Extermination 6 | . . . . . . . . . 4 . . . . . . . . . 1 . . . 1 Reinforcement 13 | . 1 . 1 3 . . . . 3 . . . . . . . . . . 3 . . 2 Assault 2 | . . . . . . . . . . . . . . . . . . . . . . . 2 Garrison 14 | . . . . . . . 1 . 5 . . . . . . . . . . . . . 8 Intercept . | . . . . . . . . . . . . . . . . . . . . . . . . Construction Impeded 3 | . . . . . . . . . 2 . . . . . . . . . . 1 . . . Haulers Reinforced . | . . . . . . . . . . . . . . . . . . . . . . . . Stealth | -11 -10 -10 -9 -9 -9 -9 -7 -7 -7 -7 -7 -6 -6 -6 -6 -6 -6 -5 -5 -5 -5 -5 -5 --------- Run | Scr Mat Min Mat Sto Gar Rec Fac Gar Fac Low Low Fac Gar Fac Low Low Dat Pro Fac Ext Cet Arc Hub Distress Signals 14 | . 2 . 3 3 . . . . 1 . . . . . . . . . . 1 2 . 2 Communications Jammed 2 | . . . . . . . . . . . . . . 2 . . . . . . . . . Distress Signals 2 | . . . . . . . . . . . . . . 2 . . . . . . . . . Times Spotted 396 | . 26 27 21 19 18 15 . 29 40 4 4 3 15 6 20 9 . 5 1 33 17 15 69 Peak Tracking Total 21 | . 6 21 4 5 5 4 . 7 4 3 3 3 8 3 3 4 . 4 2 5 5 2 21 Tactical Retreats 20 | . 2 2 . . 4 . . 1 1 . . . 1 1 4 . . . . 1 1 . 2 Traps | -11 -10 -10 -9 -9 -9 -9 -7 -7 -7 -7 -7 -6 -6 -6 -6 -6 -6 -5 -5 -5 -5 -5 -5 ------- Run | Scr Mat Min Mat Sto Gar Rec Fac Gar Fac Low Low Fac Gar Fac Low Low Dat Pro Fac Ext Cet Arc Hub Traps Triggered 28 | . 1 . 1 1 3 . 1 4 . . . . 3 . . . . . 4 8 . . 2 Indirectly . | . . . . . . . . . . . . . . . . . . . . . . . . Trap Hack Attempts . | . . . . . . . . . . . . . . . . . . . . . . . . Triggered . | . . . . . . . . . . . . . . . . . . . . . . . . Disarmed . | . . . . . . . . . . . . . . . . . . . . . . . . Reprogrammed 11 | . 6 . 3 2 . . . . . . . . . . . . . . . . . . . Reused 7 | . . . . . . . . . . . 1 . . . 6 . . . . . . . . Traps Extracted . | . . . . . . . . . . . . . . . . . . . . . . . . Installed 7 | . . . . . . . . . . . 1 . . . 6 . . . . . . . . Triggered 9 | . . . . . . . . . . 1 3 . . . 3 . . . . . . . 2 Machines | -11 -10 -10 -9 -9 -9 -9 -7 -7 -7 -7 -7 -6 -6 -6 -6 -6 -6 -5 -5 -5 -5 -5 -5 ---------- Run | Scr Mat Min Mat Sto Gar Rec Fac Gar Fac Low Low Fac Gar Fac Low Low Dat Pro Fac Ext Cet Arc Hub Machines Disabled 29 | . . . 1 2 2 5 . 1 6 1 1 . 1 . . . . . . 1 . 3 5 Max in Single Turn 3 | . . . 1 1 1 2 . 1 3 1 1 . 1 . . . . . . . . 1 2 Garrison Access 2 | . . . . . . . . . 1 . . . . 1 . . . . . . . . . Garrison Relay 4 | . . . . . 2 . . 1 . . . . 1 . . . . . . . . . . Network Hub 1 | . . . . . . . . . . . . . . . . . . . . . . . 1 Machines Sabotaged . | . . . . . . . . . . . . . . . . . . . . . . . . Garrisons Compromised . | . . . . . . . . . . . . . . . . . . . . . . . . Overloaded Fab Kills . | . . . . . . . . . . . . . . . . . . . . . . . . Fab Network Shutdowns . | . . . . . . . . . . . . . . . . . . . . . . . . Hacking | -11 -10 -10 -9 -9 -9 -9 -7 -7 -7 -7 -7 -6 -6 -6 -6 -6 -6 -5 -5 -5 -5 -5 -5 --------- Run | Scr Mat Min Mat Sto Gar Rec Fac Gar Fac Low Low Fac Gar Fac Low Low Dat Pro Fac Ext Cet Arc Hub Machines Accessed 74 | . 9 . 7 8 . 6 4 . 8 . 2 2 . 3 . . 4 . 2 10 1 . 8 Terminals 45 | . 7 . 6 5 . 3 1 . 5 . . . . 1 . . . . 2 7 1 . 7 Fabricators 4 | . . . . . . . 1 . 1 . . 1 . 1 . . . . . . . . . Repair Stations 6 | . 1 . . 2 . . 1 . 1 . . . . . . . . . . 1 . . . Recycling Units 6 | . 1 . . . . 3 . . . . . . . . . . . . . 2 . . . Scanalyzers 1 | . . . 1 . . . . . . . . . . . . . . . . . . . . Garrison Access 6 | . . . . 1 . . 1 . 1 . . 1 . 1 . . . . . . . . 1 Total Hacks 246 | . 27 . 18 19 . 24 10 . 23 . 8 6 . 13 . . 28 . 4 39 1 . 26 Successful 142 | . 14 . 14 13 . 10 8 . 12 . 8 3 . 5 . . 28 . 1 20 1 . 5 Failed 103 | . 12 . 4 6 . 14 2 . 11 . . 3 . 8 . . . . 3 19 . . 21 Catastrophic 22 | . 1 . 1 1 . 3 . . 4 . . . . 1 . . . . 2 3 . . 6 Database Lockouts 1 | . 1 . . . . . . . . . . . . . . . . . . . . . . Manual 109 | . 10 . 8 10 . 18 5 . 13 . . 2 . 8 . . . . 4 20 1 . 10 Terminals 140 | . 21 . 14 11 . 15 3 . 15 . . . . 5 . . . . 4 28 1 . 23 Fabricators 11 | . . . . . . . 2 . 3 . . 3 . 3 . . . . . . . . . Repair Stations 18 | . 3 . . 4 . . 2 . 2 . . . . . . . . . . 7 . . . Recycling Units 16 | . 3 . . . . 9 . . . . . . . . . . . . . 4 . . . Scanalyzers 4 | . . . 4 . . . . . . . . . . . . . . . . . . . . Garrison Access 21 | . . . . 4 . . 3 . 3 . . 3 . 5 . . . . . . . . 3 Terminal Hacks 83 | . 9 . 10 5 . 3 1 . 4 . 8 . . 2 . . 28 . . 9 1 . 3 Record 18 | . . . . . . . . . . . 7 . . . . . 11 . . . . . . Part Schematic 12 | . . . 1 . . . . . . . . . . . . . 9 . . 2 . . . Robot Schematic 5 | . . . . . . . . . . . . . . . . . 5 . . . . . . Robot Analysis 3 | . 1 . 2 . . . . . . . . . . . . . . . . . . . . Prototype ID Bank 11 | . 2 . 3 2 . 1 . . . . . . . . . . 3 . . . . . . Open Door 3 | . . . . 1 . . . . . . 1 . . . . . . . . . 1 . . Branch Access Points 3 | . . . 1 . . . . . 1 . . . . 1 . . . . . . . . . Alert Level 1 | . 1 . . . . . . . . . . . . . . . . . . . . . . Unreport Threat 12 | . 2 . 1 . . 2 . . 3 . . . . 1 . . . . . 2 . . 1 Locate Traps 1 | . . . . . . . . . . . . . . . . . . . . 1 . . . Reprogram Traps 3 | . 1 . 1 1 . . . . . . . . . . . . . . . . . . . Recall Reinforcements 2 | . . . . . . . . . . . . . . . . . . . . 2 . . . Registered Components 1 | . 1 . . . . . . . . . . . . . . . . . . . . . . Zone Layout 8 | . 1 . 1 1 . . 1 . . . . . . . . . . . . 2 . . 2 Fabricator Hacks 4 | . . . . . . . 1 . 2 . . 1 . . . . . . . . . . . Load Schematic 1 | . . . . . . . . . . . . 1 . . . . . . . . . . . Build 3 | . . . . . . . 1 . 2 . . . . . . . . . . . . . . Repair Station Hacks 15 | . 2 . . 4 . . 2 . 2 . . . . . . . . . . 5 . . . Scan Component 8 | . 1 . . 2 . . 1 . 1 . . . . . . . . . . 3 . . . Repair 7 | . 1 . . 2 . . 1 . 1 . . . . . . . . . . 2 . . . Recycling Unit Hacks 5 | . 1 . . . . 3 . . . . . . . . . . . . . 1 . . . Retrieve Components 5 | . 1 . . . . 3 . . . . . . . . . . . . . 1 . . . Scanalyzer 4 | . . . 4 . . . . . . . . . . . . . . . . . . . . Insert Component 2 | . . . 2 . . . . . . . . . . . . . . . . . . . . Analyze 2 | . . . 2 . . . . . . . . . . . . . . . . . . . . Garrison Access Hacks 6 | . . . . 1 . . 1 . 1 . . 1 . 1 . . . . . . . . 1 Unlock Access 4 | . . . . 1 . . 1 . . . . 1 . . . . . . . . . . 1 Seal Access 2 | . . . . . . . . . 1 . . . . 1 . . . . . . . . . Unauthorized Hacks 25 | . 2 . . 3 . 4 3 . 3 . . 1 . 2 . . . . 1 5 . . 1 Terminals 15 | . 1 . . 3 . 1 1 . 1 . . . . 1 . . . . 1 5 . . 1 Track 2 | . . . . . . . . . . . . . . . . . . . . 2 . . . Botnet 10 | . . . . 2 . 1 1 . 1 . . . . 1 . . . . 1 2 . . 1 Disrupt 2 | . 1 . . 1 . . . . . . . . . . . . . . . . . . . Operators 1 | . . . . . . . . . . . . . . . . . . . . 1 . . . Fabricators 2 | . . . . . . . 1 . 1 . . . . . . . . . . . . . . Prioritize 2 | . . . . . . . 1 . 1 . . . . . . . . . . . . . . Repair Stations . | . . . . . . . . . . . . . . . . . . . . . . . . Recycling Units 4 | . 1 . . . . 3 . . . . . . . . . . . . . . . . . Tunnel 4 | . 1 . . . . 3 . . . . . . . . . . . . . . . . . Scanalyzers . | . . . . . . . . . . . . . . . . . . . . . . . . Garrison Access 4 | . . . . . . . 1 . 1 . . 1 . 1 . . . . . . . . . Reprogram 4 | . . . . . . . 1 . 1 . . 1 . 1 . . . . . . . . . Data Cores Recovered 1 | . . . . . . . . . . . . . . . . . . . . . . . 1 Used 1 | . . . . . . . . . . . . . . . . . . . . . . . 1 Hacking Detections 53 | . 6 . 5 5 . 4 3 . 7 . . 2 . 3 . . . . 2 8 . . 8 Full Trace Events 14 | . 2 . 1 1 . 2 1 . 2 . . 1 . 1 . . . . . . . . 3 Feedback Events . | . . . . . . . . . . . . . . . . . . . . . . . . Feedback Blocked . | . . . . . . . . . . . . . . . . . . . . . . . . Robot Schematics Acquired 5 | . . . . . . . . . . . . . . . . . 5 . . . . . . Robots Built 3 | . . . . . . . 3 . . . . . . . . . . . . . . . . Matter 219 | . . . . . . . 219 . . . . . . . . . . . . . . . . Time 116 | . . . . . . . 116 . . . . . . . . . . . . . . . . Total Robot Build Rating 9 | . . . . . . . 9 . . . . . . . . . . . . . . . . Part Schematics Acquired 14 | . . . 3 . . . . . . . . . . . . . 9 . . 2 . . . Parts Built 2 | . . . . . . . . . 2 . . . . . . . . . . . . . . Matter 380 | . . . . . . . . . 380 . . . . . . . . . . . . . . Time 142 | . . . . . . . . . 142 . . . . . . . . . . . . . . Total Part Build Rating 10 | . . . . . . . . . 10 . . . . . . . . . . . . . . Parts Repaired 7 | . 1 . . 2 . . 1 . 1 . . . . . . . . . . 2 . . . Time 192 | . 26 . . 64 . . 32 . 32 . . . . . . . . . . 38 . . . Parts Recycled . | . . . . . . . . . . . . . . . . . . . . . . . . Recycled Matter . | . . . . . . . . . . . . . . . . . . . . . . . . Retrieved Matter . | . . . . . . . . . . . . . . . . . . . . . . . . Retrieved Components 18 | . 9 . . . . 6 . . . . . . . . . . . . . 3 . . . Parts Scanalyzed 2 | . . . 2 . . . . . . . . . . . . . . . . . . . . Part Schematics Acquired 2 | . . . 2 . . . . . . . . . . . . . . . . . . . . Parts Damaged . | . . . . . . . . . . . . . . . . . . . . . . . . Bothacking | -11 -10 -10 -9 -9 -9 -9 -7 -7 -7 -7 -7 -6 -6 -6 -6 -6 -6 -5 -5 -5 -5 -5 -5 ------------ Run | Scr Mat Min Mat Sto Gar Rec Fac Gar Fac Low Low Fac Gar Fac Low Low Dat Pro Fac Ext Cet Arc Hub Used RIF Installer 3 | . . . . . 1 . . 1 . . . . 1 . . . . . . . . . . Coupler Efficiency 1 | . . . . . . . . . . . . . 1 . . . . . . . . . . Structural Interface 1 | . . . . . . . . 1 . . . . . . . . . . . . . . . Robots Hacked 29 | . . . . 1 . . . 2 2 . . . 4 1 5 1 . . . 1 . . 12 Non-combat 6 | . . . . . . . . . . . . . . . . . . . . . . . 6 Combat 23 | . . . . 1 . . . 2 2 . . . 4 1 5 1 . . . 1 . . 6 Robot Hacks Applied 32 | . . . . 1 . . . 2 2 . . . 4 1 6 1 . . . 1 . . 14 parse_system 2 | . . . . 1 . . . . . . . . 1 . . . . . . . . . . deconstruct_machine 3 | . . . . . . . . . . . . . . . . . . . . . . . 3 deconstruct_bot 1 | . . . . . . . . . . . . . . . . . . . . . . . 1 spike_heat 1 | . . . . . . . . . . . . . . . 1 . . . . . . . . overload_power 1 | . . . . . . . . . . . . . . . . . . . . . . . 1 amplify_resonance 2 | . . . . . . . . . . . . . . . 1 . . . . . . . 1 overwrite_iff 10 | . . . . . . . . . 1 . . . 1 . 1 . . . . 1 . . 6 formatsys_low 2 | . . . . . . . . . . . . . . . . . . . . . . . 2 formatsys_high 10 | . . . . . . . . 2 1 . . . 2 1 3 1 . . . . . . . Relay Couplers Released 18 | . . . . . 8 . . 3 . . . . 5 2 . . . . . . . . . Machine Destruction 18 | . . . . . 8 . . 3 . . . . 5 2 . . . . . . . . . Attached 11 | . . . . . . . . 2 1 . . . 1 1 2 . . . . . . . 4 Robots Rewired 26 | . . . . . . . . . . . 4 . . . . 2 . . . 20 . . . Allies Hacked . | . . . . . . . . . . . . . . . . . . . . . . . . Hacks Repelled . | . . . . . . . . . . . . . . . . . . . . . . . . Allies | -11 -10 -10 -9 -9 -9 -9 -7 -7 -7 -7 -7 -6 -6 -6 -6 -6 -6 -5 -5 -5 -5 -5 -5 -------- Run | Scr Mat Min Mat Sto Gar Rec Fac Gar Fac Low Low Fac Gar Fac Low Low Dat Pro Fac Ext Cet Arc Hub Total Allies 74 | . . . . 1 . . 4 2 3 . 4 3 3 4 3 3 . 1 . 30 5 . 8 Largest Group 19 | . . . . 1 . . 3 4 4 . 4 7 6 3 3 4 4 5 . 19 10 6 5 Highest-Rated Group 648 | . . . . 99 . . 48 80 112 . 89 176 139 87 76 115 115 209 . 646 648 597 454 Highest-Rated Ally 156 | . . . . 99 . . 16 32 32 . 29 29 29 32 32 32 32 94 . 156 149 127 94 Total Orders 47 | . . . . . . . . 6 5 . 2 . 6 1 11 3 2 . . 2 2 2 5 STAY 27 | . . . . . . . . 5 3 . 1 . 4 1 6 1 1 . . 1 1 1 2 FOLLOW 19 | . . . . . . . . 1 2 . 1 . 2 . 5 2 1 . . 1 1 1 2 AID 1 | . . . . . . . . . . . . . . . . . . . . . . . 1 Ally Attacks 528 | . . . . 18 . . . 30 39 . . 13 25 17 6 26 . 40 . 93 104 22 95 Total Damage 14024 | . . . . 975 . . . 584 984 . . 109 459 304 17 713 . 1054 . 2518 2331 731 3245 Kills 98 | . . . . 10 . . . 7 10 . . 2 4 2 . 7 . 4 . 14 15 3 20 Allies Corrupted 3 | . . . . 1 . . . . . . . . . . . . . . . . 1 . 1 Allies Melted 2 | . . . . . . . . . . . . . . . . . . 1 . . . . 1 Intel | -11 -10 -10 -9 -9 -9 -9 -7 -7 -7 -7 -7 -6 -6 -6 -6 -6 -6 -5 -5 -5 -5 -5 -5 ------- Run | Scr Mat Min Mat Sto Gar Rec Fac Gar Fac Low Low Fac Gar Fac Low Low Dat Pro Fac Ext Cet Arc Hub Robot Analysis Total 3 | . 1 . 2 . . . . . . . . . . . . . . . . . . . . Derelict Logs Recovered 8 | . . 1 . . . . . . . 1 2 . . . 2 2 . . . . . . . Drone Launches . | . . . . . . . . . . . . . . . . . . . . . . . . Drone Recoveries . | . . . . . . . . . . . . . . . . . . . . . . . . Exploration | -11 -10 -10 -9 -9 -9 -9 -7 -7 -7 -7 -7 -6 -6 -6 -6 -6 -6 -5 -5 -5 -5 -5 -5 ------------- Run | Scr Mat Min Mat Sto Gar Rec Fac Gar Fac Low Low Fac Gar Fac Low Low Dat Pro Fac Ext Cet Arc Hub Turns Passed 23009 | 82 1374 196 1144 1162 1331 411 233 1280 2135 2045 1612 91 744 404 2238 968 105 499 279 1901 415 1249 1111 Spaces Moved 11471 | 45 715 79 554 473 530 212 82 621 990 993 1187 52 419 261 1493 699 85 316 173 687 182 198 425 Core 2 | 2 . . . . . . . . . . . . . . . . . . . . . . . Treads 5861 | 43 715 79 554 473 530 212 49 621 565 646 . . . . . . . . . 569 182 198 425 Legs . | . . . . . . . . . . . . . . . . . . . . . . . . Wheels 5608 | . . . . . . . 33 . 425 347 1187 52 419 261 1493 699 85 316 173 118 . . . Hover . | . . . . . . . . . . . . . . . . . . . . . . . . Flight . | . . . . . . . . . . . . . . . . . . . . . . . . Fastest Speed 50 | 50 160 160 160 180 180 180 160 180 130 140 125 135 125 125 125 125 125 125 135 135 180 180 180 Average Speed 154 | 155 161 164 167 180 180 180 180 180 164 170 125 135 134 127 125 125 125 125 135 188 186 180 180 Slowest Speed 220 | 160 180 180 180 180 200 180 190 180 200 200 150 135 135 135 135 135 125 125 135 220 200 180 185 Overloaded Moves . | . . . . . . . . . . . . . . . . . . . . . . . . Propulsion Burnouts . | . . . . . . . . . . . . . . . . . . . . . . . . Robots Hopped . | . . . . . . . . . . . . . . . . . . . . . . . . Cave-ins Triggered . | . . . . . . . . . . . . . . . . . . . . . . . . Exploration Rate (%) 52 | 4 86 21 53 56 67 64 3 59 28 96 96 2 46 7 94 77 69 43 6 85 66 82 55 Regions Visited 23 Branch Regions 13 Pre-discovered Areas 9 | . 1 1 . . . 3 . . . . 1 . . . 1 1 1 . . . . . . Known Exits Taken 13 | . . . 1 1 . . 1 . 1 1 1 1 . 1 1 1 1 1 1 . . . . Unknown Exits Taken 7 | 1 1 1 . . . 1 . . . . . . . . . . . . . 1 1 1 . Scrap Searched 16 | . . 1 . . . . . . . 5 3 . . . 4 2 . 1 . . . . . Spaces Dug 50 | . . . . . 9 . . 2 3 . 5 . . 1 4 . . 4 1 . . . 21 Terrain Destroyed 396 | . . . . . 36 106 . 33 50 52 6 . . 1 14 12 . 8 1 9 1 . 67 Melee 9 | . . . . . . . . . 3 . . . . 1 . . . . . . . . 5 Projectile 43 | . . . . . . . . . . 1 6 . . . 14 1 . 8 1 9 1 . 2 AOE 344 | . . . . . 36 106 . 33 47 51 . . . . . 11 . . . . . . 60 Terrain Rammed . | . . . . . . . . . . . . . . . . . . . . . . . . Walls Destroyed . | . . . . . . . . . . . . . . . . . . . . . . . . Machines Disabled . | . . . . . . . . . . . . . . . . . . . . . . . . Actions | -11 -10 -10 -9 -9 -9 -9 -7 -7 -7 -7 -7 -6 -6 -6 -6 -6 -6 -5 -5 -5 -5 -5 -5 --------- Run | Scr Mat Min Mat Sto Gar Rec Fac Gar Fac Low Low Fac Gar Fac Low Low Dat Pro Fac Ext Cet Arc Hub Total 15755 | 54 858 124 701 730 870 227 159 730 1377 1303 1268 71 563 313 1803 769 84 403 208 1180 251 1047 662 Wait 2647 | . 63 15 48 191 270 . 48 33 230 252 28 18 76 26 219 28 . 68 . 83 16 823 112 Move 11449 | 44 714 78 553 473 529 211 81 620 989 992 1186 51 418 260 1492 698 84 315 172 686 181 197 425 Hop . | . . . . . . . . . . . . . . . . . . . . . . . . Pick Up 172 | 4 13 . 17 9 10 1 3 11 25 15 6 . 7 2 10 5 . 4 1 15 10 1 3 Fast Attach 60 | 6 8 3 12 2 . . 3 2 7 . . . . 1 . . . . . 6 6 . 4 Attach 86 | . 1 8 1 2 . . 4 5 16 3 1 1 2 2 3 3 . . 2 14 1 . 17 Detach 20 | . 1 1 5 . . . 2 1 4 1 . . 1 1 . . . . . 3 . . . Swap 161 | . 3 . 5 10 17 1 3 12 20 6 5 . 6 9 17 8 . 2 4 5 6 1 21 Drop 125 | . 11 2 8 9 10 . 3 3 17 6 7 . 3 1 11 . . 2 . 6 20 2 4 Fire 600 | . 41 16 50 32 28 13 4 28 60 28 34 1 24 8 44 17 . 12 5 55 10 23 67 Melee 23 | . . . . 2 . . . 5 6 . . . . 3 . . . . . . . . 7 Ram . | . . . . . . . . . . . . . . . . . . . . . . . . Kick . | . . . . . . . . . . . . . . . . . . . . . . . . Crush 15 | . 3 1 2 . . 1 . . 2 . . . . . . . . . . 4 1 . 1 Escape Stasis 108 | . . . . . 6 . 8 8 . . . . 24 . . . . . 24 38 . . . Rewire 282 | . . . . . . . . 2 1 . . . 2 . 1 10 . . . 265 . . 1 Trap 7 | . . . . . . . . . . . 1 . . . 6 . . . . . . . . Miscellaneous . | . . . . . . . . . . . . . . . . . . . . . . . . Route ------- -11/Scrapyard -10/Materials (discovered 4 exits: *Mat x2 / [*Min x2]) -10/Mines -9/Materials (discovered 4 exits: [*Mat] / *Min / *Sto x2) -9/Storage (discovered 2 exits: Rec / Gar) -9/Garrison (discovered 3 exits: *Rec x3) -9/Recycling -7/Factory -7/Garrison (discovered 2 exits: *Fac x2) -7/Factory (discovered 4 exits: *Fac x2 / *Low x2) -7/Lower Caves -7/Lower Caves (discovered 2 exits: *Fac / *Zio) -6/Factory (discovered 2 exits: Fac / Gar) -6/Garrison -6/Factory (discovered 2 exits: *Low x2) -6/Lower Caves -6/Lower Caves (discovered 2 exits: *Fac / *Dat) -6/Data Miner -5/Proximity Caves -5/Factory (discovered 3 exits: Fac x2 / *Ext) -5/Extension (discovered 2 exits: *Fac / *Cet) -5/Cetus (discovered 2 exits: *Fac / *Arc) -5/Archives (discovered 3 exits: *Fac / *Hub x2) -5/Hub_04(d) (discovered 3 exits: *Fac x2 / Gar) History --------- Turn | Location | Event 4 | -11/Scrapyard | Discovered new exit (range 16) 83 | -11/Scrapyard | Entered Materials 124 | -10/Materials | Central database locked down 316 | -10/Materials | Build established: Mutant 475 | -10/Materials | Discovered new exit (range 15) 640 | -10/Materials | Repaired Lgt. Treads 1021 | -10/Materials | Discovered new exit (range 6) 1077 | -10/Materials | Discovered new exit (range 11) 1373 | -10/Materials | Discovered new exit (range 13) 1457 | -10/Materials | Entered Mines 1458 | -10/Mines | Assembled infested the area 1474 | -10/Mines | Met a Derelict bent on vengeance 1484 | -10/Mines | Core integrity fell below 50% 1545 | -10/Mines | Core integrity fell below 20% 1589 | -10/Mines | Lost 10 parts (1p4n5w) 1618 | -10/Mines | Discovered new exit (range 9) 1628 | -10/Mines | Learned location of Zion (-7) 1653 | -10/Mines | Entered Materials 1653 | -9/Materials | Evolved 2 slots: Utility x2 1693 | -9/Materials | Discovered new exit (range 15) 2025 | -9/Materials | Build established: Scavenger-Mutant 2120 | -9/Materials | Discovered new exit (range 16) 2567 | -9/Materials | Discovered new exit (range 16) 2689 | -9/Materials | Discovered new exit (range 7) 2777 | -9/Materials | Identified exit to Mines 2777 | -9/Materials | Identified exit to Storage 2791 | -9/Materials | Build established: Hauler-Mutant 2797 | -9/Materials | Entered Storage 2933 | -9/Storage | Met 01-MTF 3126 | -9/Storage | Discovered new exit (range 10) 3408 | -9/Storage | Repaired Mni. Grenade Launcher 3575 | -9/Storage | Destroyed 01-MTF 3580 | -9/Storage | Found 01-MTF's Shockpuncher 3931 | -9/Storage | Repaired Med. Armor Plating 3959 | -9/Storage | Identified exit to Garrison 3959 | -9/Storage | Entered Garrison 4017 | -9/Garrison | Triggered checkpoint 4025 | -9/Garrison | Triggered checkpoint 4152 | -9/Garrison | Discovered new exit (range 13) 4397 | -9/Garrison | Discovered new exit (range 13) 4555 | -9/Garrison | Discovered new exit (range 8) 4579 | -9/Garrison | Installed Relay Interface Framework 4620 | -9/Garrison | Triggered checkpoint 4871 | -9/Garrison | Garrison Relay disabled 4960 | -9/Garrison | Triggered checkpoint 5060 | -9/Garrison | Triggered checkpoint 5147 | -9/Garrison | Garrison Relay disabled 5290 | -9/Garrison | Entered Recycling 5337 | -9/Recycling | Spotter reported a threat 5347 | -9/Recycling | Spotter reported a threat 5403 | -9/Recycling | Spotter reported a threat 5444 | -9/Recycling | Build established: Bothacker-Mutant 5503 | -9/Recycling | Spotter reported a threat 5520 | -9/Recycling | Spotter reported a threat 5525 | -9/Recycling | Spotter reported a threat 5526 | -9/Recycling | Spotter reported a threat 5575 | -9/Recycling | Spotter reported a threat 5621 | -9/Recycling | Spotter reported a threat 5637 | -9/Recycling | Spotter reported a threat 5639 | -9/Recycling | Spotter reported a threat 5664 | -9/Recycling | Spotter reported a threat 5672 | -9/Recycling | Discovered new exit (range 15) 5692 | -9/Recycling | Spotter reported a threat 5701 | -9/Recycling | Entered Factory 5701 | -7/Factory | Evolved 4 slots: Propulsion x1, Utility x3 5797 | -7/Factory | Repaired Hvy. Assault Rifle 5825 | -7/Factory | Identified exit to Garrison 5907 | -7/Factory | Fabricated G-47 Trooper? 5934 | -7/Factory | Entered Garrison 5934 | -7/Garrison | Accompanied by 4 allies 5982 | -7/Garrison | Triggered checkpoint 6090 | -7/Garrison | Triggered checkpoint 6104 | -7/Garrison | Triggered checkpoint 6437 | -7/Garrison | Discovered new exit (range 15) 6577 | -7/Garrison | Triggered checkpoint 6681 | -7/Garrison | Discovered new exit (range 12) 6702 | -7/Garrison | Identified exit to Factory 6715 | -7/Garrison | Expanded RIF knowledge: Structural Interface 7041 | -7/Garrison | Garrison Relay disabled 7214 | -7/Garrison | Entered Factory 7214 | -7/Factory | Accompanied by 2 allies 7296 | -7/Factory | Repaired Med. Armor Plating 7372 | -7/Factory | Garrison activated, responded to threat 7694 | -7/Factory | Garrison activated, responded to threat 7765 | -7/Factory | Lost 5 parts (1p1n2u1w) 8571 | -7/Factory | Discovered new exit (range 16) 8648 | -7/Factory | Identified exit to Factory 8977 | -7/Factory | Identified exit to Lower Caves 9128 | -7/Factory | Discovered exit to Factory (range 12) 9177 | -7/Factory | Fabricated Proton Cannon (x1) 9228 | -7/Factory | Fabricated Proton Cannon (x1) 9349 | -7/Factory | Entered Lower Caves 9512 | -7/Lower Caves | Attacked by a delusional Derelict stockpiling parts 10096 | -7/Lower Caves | Spotted B-75 Beast 10121 | -7/Lower Caves | Destroyed B-75 Beast 11123 | -7/Lower Caves | Discovered new exit (range 12) 11393 | -7/Lower Caves | Identified exit to Lower Caves 11394 | -7/Lower Caves | Entered another Lower Caves area 11553 | -7/Lower Caves | Discovered exit to Factory (range 11) 11710 | -7/Lower Caves | Learned 12 Factory zone layouts 11926 | -7/Lower Caves | Attacked by a delusional Derelict stockpiling Unaware 12106 | -7/Lower Caves | Learned location of 1 exit from Research 12106 | -7/Lower Caves | Learned Research emergency access door positions 12106 | -7/Lower Caves | Learned Armory emergency access door positions 12106 | -7/Lower Caves | Learned Armory security intel 12106 | -7/Lower Caves | Learned Factory garrison access intel 12346 | -7/Lower Caves | Discovered new exit (range 3) 12352 | -7/Lower Caves | Identified exit to Zion 12382 | -7/Lower Caves | Encountered a Warlord checkpoint 13006 | -7/Lower Caves | Entered Factory 13006 | -6/Factory | Accompanied by 4 allies 13006 | -6/Factory | Evolved 2 slots: Utility x2 13007 | -6/Factory | Identified exit to Factory 13008 | -6/Factory | Loaded intel: 4 garrison access locations 13044 | -6/Factory | Identified exit to Garrison 13097 | -6/Factory | Entered Garrison 13097 | -6/Garrison | Accompanied by 5 allies 13104 | -6/Garrison | Expanded RIF knowledge: Coupler Efficiency 13471 | -6/Garrison | Discovered new exit (range 12) 13485 | -6/Garrison | Identified exit to Factory 13514 | -6/Garrison | Triggered checkpoint 13793 | -6/Garrison | Garrison Relay disabled 13841 | -6/Garrison | Entered Factory 13841 | -6/Factory | Accompanied by 2 allies 13845 | -6/Factory | Identified exit to Lower Caves 14245 | -6/Factory | Entered Lower Caves 14245 | -6/Lower Caves | Accompanied by 1 ally 14789 | -6/Lower Caves | Cld. Particle Cannon stolen by Master Thief 15225 | -6/Lower Caves | Ambushed by wild Derelicts 15451 | -6/Lower Caves | Encountered a Warlord checkpoint 15599 | -6/Lower Caves | Attracted the attention of an 0b10 checkpoint 15663 | -6/Lower Caves | Discovered new exit (range 22) 15688 | -6/Lower Caves | Identified exit to Lower Caves 15704 | -6/Lower Caves | Learned 4 Factory zone layouts 16166 | -6/Lower Caves | Spotted B-75 Beast 16272 | -6/Lower Caves | Destroyed B-75 Beast 16483 | -6/Lower Caves | Entered another Lower Caves area 16483 | -6/Lower Caves | Accompanied by 3 allies 16501 | -6/Lower Caves | Discovered exit to Factory (range 16) 16887 | -6/Lower Caves | Learned location of 1 exit from Factory 17132 | -6/Lower Caves | Discovered new exit (range 18) 17230 | -6/Lower Caves | Attacked by a faux Warlord 17268 | -6/Lower Caves | Lost 3 parts (1n1u1w) 17302 | -6/Lower Caves | Identified exit to Data Miner 17451 | -6/Lower Caves | Entered Data Miner 17451 | -6/Data Miner | Accompanied by 4 allies 17451 | -6/Data Miner | Discovered new exit (range 6) 17475 | -6/Data Miner | Met Data Miner 17503 | -6/Data Miner | Learned location of Section 7 (-2) 17503 | -6/Data Miner | Acquired the access code to Warlord's prototype stash 17524 | -6/Data Miner | Received God Mode back door access code from Data Miner 17555 | -6/Data Miner | Identified exit to Proximity Caves 17556 | -6/Data Miner | Entered Proximity Caves 17556 | -5/Proximity Caves | Accompanied by 4 allies 17571 | -5/Proximity Caves | Escorted by Enhanced Grunt 17696 | -5/Proximity Caves | Found Prototype Device 17933 | -5/Proximity Caves | Discovered exit to Factory (range 5) 18055 | -5/Proximity Caves | Entered Factory 18055 | -5/Factory | Evolved 2 slots: Power x1, Utility x1 18056 | -5/Factory | Identified exit to Extension 18057 | -5/Factory | Identified exit to Factory 18062 | -5/Factory | Identified Exp. Thermal Shield 18117 | -5/Factory | Incoming investigation squad redirected 18334 | -5/Factory | Entered Extension 18410 | -5/Extension | Rescued a captive Derelict 18474 | -5/Extension | Rescued a captive Derelict 18775 | -5/Extension | Repaired Imp. Light Armor Plating 18795 | -5/Extension | Repaired Imp. Light Armor Plating 18858 | -5/Extension | Rescued a captive Derelict 19296 | -5/Extension | Spotted B-75 Beast 19312 | -5/Extension | Allies destroyed B-75 Beast 19317 | -5/Extension | Spotted B-75 Beast 19349 | -5/Extension | Destroyed B-75 Beast 19417 | -5/Extension | Lost 6 parts (2p2n1u1w) 19504 | -5/Extension | Rescued A7 19587 | -5/Extension | Lost 3 parts (1n1u1w) 19737 | -5/Extension | Rescued a captive Derelict 19774 | -5/Extension | Rescued a captive Derelict 20124 | -5/Extension | Rescued a captive Derelict 20159 | -5/Extension | Rescued a captive Derelict 20162 | -5/Extension | Rescued a captive Derelict 20218 | -5/Extension | Discovered exit to Factory (range 10) 20220 | -5/Extension | Discovered new exit (range 6) 20235 | -5/Extension | Entered Cetus 20235 | -5/Cetus | Accompanied by 10 allies (A7) 20240 | -5/Cetus | Acquired a Cetus Manufacturing Module code from A7 20261 | -5/Cetus | Spotted Cetus Guard 20261 | -5/Cetus | Spotted Cetus Guard 20265 | -5/Cetus | Spotted Cetus Guard 20266 | -5/Cetus | Spotted Cetus Guard 20266 | -5/Cetus | Allies destroyed Cetus Guard 20279 | -5/Cetus | Allies destroyed Cetus Guard 20280 | -5/Cetus | Allies destroyed Cetus Guard 20283 | -5/Cetus | Destroyed Cetus Guard 20380 | -5/Cetus | Started Cetus Manufacturing Module 20392 | -5/Cetus | Escorted A7 to Cetus Mainframe 20405 | -5/Cetus | Manufactured an Enhanced Grunt 20427 | -5/Cetus | Discovered new exit (range 15) 20430 | -5/Cetus | Manufactured an Enhanced Grunt 20455 | -5/Cetus | Manufactured an Enhanced Grunt 20463 | -5/Cetus | Spotted Cetus Guard 20463 | -5/Cetus | Spotted Cetus Guard 20468 | -5/Cetus | Destroyed Cetus Guard 20468 | -5/Cetus | Spotted Cetus Guard 20471 | -5/Cetus | Destroyed Cetus Guard 20471 | -5/Cetus | Spotted Cetus Guard 20476 | -5/Cetus | Destroyed Cetus Guard 20479 | -5/Cetus | Destroyed Cetus Guard 20480 | -5/Cetus | Manufactured an Enhanced Grunt 20492 | -5/Cetus | Discovered exit to Factory (range 15) 20501 | -5/Cetus | Met Revision 17 20505 | -5/Cetus | Manufactured an Enhanced Grunt 20650 | -5/Cetus | Entered Archives 20650 | -5/Archives | Accompanied by 6 allies (A7) 20655 | -5/Archives | Received a hacking code to weaken MAIN.C 20730 | -5/Archives | Discovered new exit (range 15) 20845 | -5/Archives | Discovered exit to Factory (range 15) 20870 | -5/Archives | Discovered new exit (range 16) 21052 | -5/Archives | Unable to access archive contents 21899 | -5/Archives | Entered Hub_04(d) 21899 | -5/Hub_04(d) | Accompanied by 5 allies 21939 | -5/Hub_04(d) | Identified exit to Garrison 21961 | -5/Hub_04(d) | Discovered exit to Factory (range 16) 22047 | -5/Hub_04(d) | Garrison activated, responded to threat 22220 | -5/Hub_04(d) | Garrison activated, responded to threat 22232 | -5/Hub_04(d) | Discovered exit to Factory (range 8) 22428 | -5/Hub_04(d) | Incoming investigation squad redirected 22499 | -5/Hub_04(d) | First assault squad dispatched 22518 | -5/Hub_04(d) | Incoming assault squad redirected 22875 | -5/Hub_04(d) | Network Hub disabled 22881 | -5/Hub_04(d) | Spotted Lightning 22881 | -5/Hub_04(d) | Spotted Lightning 22882 | -5/Hub_04(d) | Spotted Lightning 22883 | -5/Hub_04(d) | Spotted Lightning 22884 | -5/Hub_04(d) | Garrison activated, responded to threat 22886 | -5/Hub_04(d) | Spotted Lightning 22886 | -5/Hub_04(d) | Spotted Lightning 22886 | -5/Hub_04(d) | Spotted Lightning 22886 | -5/Hub_04(d) | Spotted Lightning 22888 | -5/Hub_04(d) | Spotted Lightning 22889 | -5/Hub_04(d) | Spotted Lightning 22890 | -5/Hub_04(d) | Spotted Lightning 22893 | -5/Hub_04(d) | Spotted Lightning 22897 | -5/Hub_04(d) | System corruption reached 10% 22939 | -5/Hub_04(d) | Lost 7 parts (1p2n2u2w) 22945 | -5/Hub_04(d) | Spotted B-75 Beast 22950 | -5/Hub_04(d) | System corruption reached 30% 22959 | -5/Hub_04(d) | Core integrity fell below 50% 22988 | -5/Hub_04(d) | Core integrity fell below 20% 23009 | -5/Hub_04(d) | Destroyed Lightning 23010 | -5/Hub_04(d) | Destroyed by Lightning with EMDS Last Messages --------------- 23005_ Penetrated by EMDS Slug. 23005_ Penetrated by Slug. 23005_ System corrupted: Imp. KE Penetrator targeting data glitched. 23005_ Slug penetrates Lightning. 23006_ Penetrated by EMDS Slug. 23007_ EMDS Slug penetrates Lightning. 23007_ K-01 Serf collects debris. 23007_ T-07 Excavator system corruption misinterpreted. 23007_ T-07 Excavator triggered Shock Trap. 23007_ The floor emits a surge of raw power. 23007_ Slug penetrates Lightning. 23007_ Lightning suffers critical hit. 23007_ Destroyed Prototype Leg. 23008_ T-07 Excavator system terminally corrupted. 23008_ Penetrated by EMDS Slug. 23009_ Imp. KE Penetrator destroyed. 23009_ Crushed Lightning. 23009_ Lightning destroyed. 23010_ Acquired 2 matter. 23010_ Penetrated by EMDS Slug. Map ----- +----------------------------------------------------+ | ?????????????????????????????????????????????????? | | ?????????????????????????????????????????????????? | | ?????????????????????????????????????????????????? | | ?????????????????????????????????????????????????? | | ?????????????????????????????????????????????????? | | ?????????????????????????????????????????????????? | | ?????????????????????????????????????????????????? | | #????????????????????????????????????????????????? | | #????????????????????????????????????????????????? | | #????????????????????????????????????????????????? | | #????????????????????????????????????????????????? | | #???????????????????? ???????????????????????????? | | #??????????????????? ??????????????????????????? | | #???????????????????# #?????????????????????????? | | #???????????????????# #??"""? ??????????????????? | | #???????????????????# #??""""u??????????????????? | | #??????????????????## ###"""" ?????????????????? | | ???????????????????? o+ ?????????????????? | | ????????????????????# # ??????????????????? | | ????????????????????# %Y # ku ???????????????????? | | ?????####+#######???# ;; ##???????????????????? | | ? [ #???# g ;#???????????????????? | | ?""" """ """ #####A h ;###?????????????????? | | + i h #%*#?????????????????? | | """ """ """ ! # h h #[ #####?????????????? | | # hh@= =% #?????????????? | | """ """ "" Rgg i h = = #?????????????? | | #### ihhh #?????????????? | | """ """ #??# h #?????????????? | | #??# #?????????????? | | ?#######"#########?#/# #?????????????? | | ??##### #? ?%% ; ! #?????????????? | | ???+ # """" """" # ????????????? | | ???#### =+ """" """" # ??????????? | | ??????# %# """"^"""" # ####??????????? | | "" #### #??""" """" ########;######?????????????? | | "" / #???? ?? ???????? #??????????????????? | | "" #### #????????###????????# ??????????????????? | | ? ????# ######## ??????? ??????????????????? | | ?????#!!#! " ??????? ??????????????????? | | ####### ! %%"""""""#####?????????????????????? | | =%" % %"" ?????????????????????? | | !=" %"" ??????????????????????? | | " %"" " ??????????????????????? | | % % % " % "" """????????????????????????? | | [ % % """ """"????????????????????????? | | *% ! = " """""???????????????????????? | | % *%! = !* " """""???????????????????????? | | ####+#########"""" """ ??????????????????????? | | # "" " ?????????????????????? | +----------------------------------------------------+ Best States ------------- Heat Dissipation 59 Energy Generation 45 Energy Capacity 600 Matter Stores 300 Matter Capacity 300 Sight Range 18 Terrain Scan Range 24 Terrain Scan Density 210 Jamming Range 12 Armor Coverage 750 Core Shielding 20 Utility Shielding 66 Evasion (%) 40 Targeting Accuracy 6 Recoil Reduction 3 Offensive Hacking 11 Defensive Hacking 11 Relay Coupler Types 50 Relay Coupler Value 2 Item Schematics ----------------- Datajack | -9/Materials | Scanalyzed Hacking Suite | -9/Materials | Scanalyzed Hcp. Storage Unit | -9/Materials | Hacked Combat Drone Bay | -6/Data Miner | Free Lgt. Regenerative Plating | -6/Data Miner | Free Exp. Cesium-ion Thruster | -6/Data Miner | Free Triangulator | -6/Data Miner | Free Exp. Sensor Array | -6/Data Miner | Free Exp. Targeting Computer | -6/Data Miner | Free Tactical Coordination Suite | -6/Data Miner | Free Exp. ECM Suite | -6/Data Miner | Free Cloaking Device | -6/Data Miner | Free Adv. Armor Integrity Analyzer | -5/Extension | Hacked Quantum Capacitor | -5/Extension | Hacked Robot Schematics ------------------ S-27 Virus | -6/Data Miner | Free G-50 Soldier | -6/Data Miner | Free X-72 Disruptor | -6/Data Miner | Free H-66 Slayer | -6/Data Miner | Free I-36 Angel | -6/Data Miner | Free Fabricated ------------ G-47 Trooper | x3 | -7/Factory | Preloaded Proton Cannon | x1 | -7/Factory | Preloaded Proton Cannon | x1 | -7/Factory | Preloaded Alien Tech Used ----------------- None Achievements -------------- None Challenges ------------ None Game ------ Seed LongswordLightBox Manual? 0 Play Time 02:13:37 Cumulative 722.1 hours Start 2020.11.20 @ 02:06:10 End 2020.11.21 @ 13:14:29 Sessions 7 Manual Loads 0 Difficulty Rogue Special Mode None Game No. 519 Rogue 515 Adventurer 4 Explorer 0 Win Type - Total 80 Types 63/7/3/3/2/0/0/1/1 Lore% 94 Gallery% 96 Achievement% 96 Wizard Run 0 Options --------- ASCII 0 Keyboard 1 Movement Vi Keybinds 0 Fullscreen 0 Font 16/Terminus Map View 76x50 Tactical HUD 1 Map Filters NONE Filters NONE Steam 1 RUN: 9241bef9-ce0e-43c3-af83-5958a44a8e6a